[Event "Titled Tuesday Blitz June 27 Early 2023"]
[White "Maksimovic, Bojan"]
[Black "Theodorou, Nikolas"]
[WhiteFideId "14408120"]
[BlackFideId "4262875"]
[WhiteElo "2776"]
[BlackElo "3016"]
[Result "0-1"]
[Round "3"]
[TimeControl "180+2"]
[Date "2023.06.27"]
[WhiteClock "0:00:02"]
[BlackClock "0:00:08"]
[Board "8"]

1. Nf3 {[%clk 0:03:00]}  Nf6 {[%clk 0:02:59]} 2. g3 {[%clk 0:03:00]}  g6 {[%clk 0:02:59]} 3. Bg2 {[%clk 0:03:00]}  Bg7 {[%clk 0:03:00]} 4. d3 {[%clk 0:03:00]}  d5 {[%clk 0:02:57]} 5. Bd2 {[%clk 0:02:57]}  c5 {[%clk 0:02:57]} 6. Qc1 {[%clk 0:02:57]}  Qb6 {[%clk 0:02:55]} 7. O-O {[%clk 0:02:54]}  Nc6 {[%clk 0:02:54]} 8. Na3 {[%clk 0:02:47]}  Bg4 {[%clk 0:02:51]} 9. c4 {[%clk 0:02:46]}  Bxf3 {[%clk 0:02:47]} 10. Bxf3 {[%clk 0:02:44]}  Nd4 {[%clk 0:02:48]} 11. Bc3 {[%clk 0:02:32]}  Nxf3+ {[%clk 0:02:41]} 12. exf3 {[%clk 0:02:33]}  d4 {[%clk 0:02:40]} 13. Bd2 {[%clk 0:02:32]}  h5 {[%clk 0:02:39]} 14. h4 {[%clk 0:02:32]}  Qc6 {[%clk 0:02:38]} 15. Kg2 {[%clk 0:02:30]}  Ng4 {[%clk 0:02:37]} 16. Qd1 {[%clk 0:02:28]}  O-O {[%clk 0:02:25]} 17. Re1 {[%clk 0:02:28]}  Ne5 {[%clk 0:02:12]} 18. Bf4 {[%clk 0:02:25]}  Nd7 {[%clk 0:01:58]} 19. Rxe7 {[%clk 0:02:25]}  Rfe8 {[%clk 0:01:59]} 20. Rxe8+ {[%clk 0:02:24]}  Rxe8 {[%clk 0:02:00]} 21. Qd2 {[%clk 0:02:23]}  Nf8 {[%clk 0:01:56]} 22. Re1 {[%clk 0:02:20]}  Ne6 {[%clk 0:01:57]} 23. Nc2 {[%clk 0:02:00]}  b5 {[%clk 0:01:52]} 24. cxb5 {[%clk 0:01:59]}  Qxb5 {[%clk 0:01:52]} 25. Na3 {[%clk 0:01:59]}  Qa6 {[%clk 0:01:39]} 26. Rd1 {[%clk 0:01:44]}  Qa4 {[%clk 0:01:27]} 27. Rc1 {[%clk 0:01:17]}  Kh7 {[%clk 0:01:27]} 28. Bd6 {[%clk 0:01:12]}  Bh6 {[%clk 0:01:14]} 29. Bf4 {[%clk 0:01:11]}  Bxf4 {[%clk 0:00:40]} 30. gxf4 {[%clk 0:01:11]}  Ng7 {[%clk 0:00:41]} 31. Rxc5 {[%clk 0:00:57]}  Nf5 {[%clk 0:00:41]} 32. Rc7 {[%clk 0:00:27]}  Nxh4+ {[%clk 0:00:38]} 33. Kg3 {[%clk 0:00:28]}  Nf5+ {[%clk 0:00:36]} 34. Kg2 {[%clk 0:00:29]}  Kg7 {[%clk 0:00:31]} 35. Nc4 {[%clk 0:00:29]}  Nh4+ {[%clk 0:00:24]} 36. Kg3 {[%clk 0:00:29]}  Nf5+ {[%clk 0:00:24]} 37. Kg2 {[%clk 0:00:29]}  Qb5 {[%clk 0:00:10]} 38. a4 {[%clk 0:00:28]}  Qd5 {[%clk 0:00:10]} 39. Ne5 {[%clk 0:00:24]}  Nh4+ {[%clk 0:00:10]} 40. Kg3 {[%clk 0:00:01]}  Rxe5 {[%clk 0:00:10]} 41. Kxh4 {[%clk 0:00:02]}  Qxf3 {[%clk 0:00:08]} 42. fxe5 {[%clk 0:00:02]}  Qg4# {[%clk 0:00:08]} 0-1


[Site "https://www.chess.com"]

[Event "Titled Tuesday Blitz June 27 Early 2023"]
[White "Kantor, Gergely"]
[Black "Terry, Renato"]
[WhiteFideId "751499"]
[BlackFideId "3803457"]
[WhiteElo "2773"]
[BlackElo "3003"]
[Result "0-1"]
[Round "3"]
[TimeControl "180+2"]
[Date "2023.06.27"]
[WhiteClock "0:00:00"]
[BlackClock "0:00:16"]
[Board "9"]

1. d4 {[%clk 0:02:59]}  e6 {[%clk 0:02:59]} 2. Nf3 {[%clk 0:02:59]}  Nf6 {[%clk 0:02:59]} 3. c4 {[%clk 0:02:58]}  Bb4+ {[%clk 0:02:58]} 4. Bd2 {[%clk 0:02:57]}  c5 {[%clk 0:02:58]} 5. Bxb4 {[%clk 0:02:57]}  cxb4 {[%clk 0:02:59]} 6. e3 {[%clk 0:02:57]}  O-O {[%clk 0:02:58]} 7. Bd3 {[%clk 0:02:57]}  d6 {[%clk 0:02:58]} 8. O-O {[%clk 0:02:57]}  Nc6 {[%clk 0:02:56]} 9. Nbd2 {[%clk 0:02:57]}  a5 {[%clk 0:02:51]} 10. Qc2 {[%clk 0:02:56]}  e5 {[%clk 0:02:50]} 11. h3 {[%clk 0:02:54]}  Qe7 {[%clk 0:02:48]} 12. Rfe1 {[%clk 0:02:49]}  Re8 {[%clk 0:02:43]} 13. Ne4 {[%clk 0:02:33]}  h6 {[%clk 0:02:41]} 14. c5 {[%clk 0:02:01]}  Nxe4 {[%clk 0:02:39]} 15. Bxe4 {[%clk 0:02:00]}  dxc5 {[%clk 0:02:40]} 16. Bxc6 {[%clk 0:01:56]}  bxc6 {[%clk 0:02:38]} 17. Nxe5 {[%clk 0:01:56]}  cxd4 {[%clk 0:02:23]} 18. Nxc6 {[%clk 0:01:53]}  Qg5 {[%clk 0:02:21]} 19. f4 {[%clk 0:01:38]}  Qg3 {[%clk 0:02:20]} 20. Nxd4 {[%clk 0:01:31]}  Bxh3 {[%clk 0:02:19]} 21. Qf2 {[%clk 0:01:31]}  Qxf2+ {[%clk 0:01:55]} 22. Kxf2 {[%clk 0:01:31]}  Bg4 {[%clk 0:01:56]} 23. Rac1 {[%clk 0:01:30]}  Rec8 {[%clk 0:01:55]} 24. e4 {[%clk 0:01:28]}  g6 {[%clk 0:01:45]} 25. Ke3 {[%clk 0:01:21]}  Kg7 {[%clk 0:01:42]} 26. g3 {[%clk 0:01:14]}  h5 {[%clk 0:01:37]} 27. Rg1 {[%clk 0:00:54]}  Kf6 {[%clk 0:01:30]} 28. Rge1 {[%clk 0:00:53]}  g5 {[%clk 0:01:24]} 29. e5+ {[%clk 0:00:51]}  Kg6 {[%clk 0:01:25]} 30. Nc6 {[%clk 0:00:49]}  Kh6 {[%clk 0:01:22]} 31. Ne7 {[%clk 0:00:46]}  gxf4+ {[%clk 0:01:18]} 32. gxf4 {[%clk 0:00:41]}  Rxc1 {[%clk 0:01:08]} 33. Rxc1 {[%clk 0:00:41]}  Rd8 {[%clk 0:00:59]} 34. Rc6+ {[%clk 0:00:35]}  Kg7 {[%clk 0:00:59]} 35. f5 {[%clk 0:00:35]}  Rd1 {[%clk 0:00:55]} 36. Kf4 {[%clk 0:00:31]}  Rf1+ {[%clk 0:00:47]} 37. Kg5 {[%clk 0:00:31]}  Rg1 {[%clk 0:00:48]} 38. f6+ {[%clk 0:00:21]}  Kh7 {[%clk 0:00:47]} 39. Rb6 {[%clk 0:00:18]}  Rg2 {[%clk 0:00:43]} 40. Rb8 {[%clk 0:00:17]}  Be6+ {[%clk 0:00:37]} 41. Kxh5 {[%clk 0:00:15]}  Rxb2 {[%clk 0:00:37]} 42. Kg5 {[%clk 0:00:09]}  Rxa2 {[%clk 0:00:37]} 43. Kf4 {[%clk 0:00:09]}  Rg2 {[%clk 0:00:31]} 44. Rd8 {[%clk 0:00:07]}  b3 {[%clk 0:00:23]} 45. Rd1 {[%clk 0:00:07]}  Rg4+ {[%clk 0:00:23]} 46. Kf3 {[%clk 0:00:07]}  Rh4 {[%clk 0:00:24]} 47. Rg1 {[%clk 0:00:07]}  b2 {[%clk 0:00:17]} 48. Rg7+ {[%clk 0:00:07]}  Kh6 {[%clk 0:00:17]} 49. Ng8+ {[%clk 0:00:07]}  Kh5 {[%clk 0:00:18]} 50. Rh7+ {[%clk 0:00:07]}  Kg5 {[%clk 0:00:17]} 51. Rg7+ {[%clk 0:00:05]}  Kf5 {[%clk 0:00:17]} 52. Ne7+ {[%clk 0:00:05]}  Kxe5 {[%clk 0:00:18]} 53. Nc6+ {[%clk 0:00:06]}  Kxf6 {[%clk 0:00:18]} 54. Rg1 {[%clk 0:00:05]}  Rh1 {[%clk 0:00:16]} 55. Rxh1 {[%clk 0:00:02]}  Bd5+ {[%clk 0:00:16]} 56. Ke3 {[%clk 0:00:03]}  Bxh1 {[%clk 0:00:17]} 57. Nd4 {[%clk 0:00:03]}  b1=Q {[%clk 0:00:17]} 58. Kd2 {[%clk 0:00:00]}  Qe4 {[%clk 0:00:16]} 0-1


[Site "https://www.chess.com"]

[Event "Titled Tuesday Blitz June 27 Early 2023"]
[White "Paravyan, David"]
[Black "Kilic, Eray"]
[WhiteFideId "4194985"]
[BlackFideId "44517173"]
[WhiteElo "2996"]
[BlackElo "2769"]
[Result "1-0"]
[Round "3"]
[TimeControl "180+2"]
[Date "2023.06.27"]
[WhiteClock "0:00:20"]
[BlackClock "0:00:48"]
[Board "11"]

1. e4 {[%clk 0:03:00]}  e5 {[%clk 0:02:59]} 2. Nf3 {[%clk 0:03:00]}  Nf6 {[%clk 0:02:59]} 3. d4 {[%clk 0:02:59]}  Nxe4 {[%clk 0:02:58]} 4. Bd3 {[%clk 0:03:00]}  d5 {[%clk 0:02:57]} 5. Nxe5 {[%clk 0:03:00]}  Nf6 {[%clk 0:02:54]} 6. O-O {[%clk 0:02:59]}  Be7 {[%clk 0:02:54]} 7. Re1 {[%clk 0:02:57]}  O-O {[%clk 0:02:54]} 8. Bf4 {[%clk 0:02:56]}  Nc6 {[%clk 0:02:37]} 9. c3 {[%clk 0:02:52]}  Bd6 {[%clk 0:02:36]} 10. Nd2 {[%clk 0:02:51]}  Ne7 {[%clk 0:02:35]} 11. Qc2 {[%clk 0:02:50]}  Ng6 {[%clk 0:02:34]} 12. Nxg6 {[%clk 0:02:49]}  fxg6 {[%clk 0:02:33]} 13. Bxd6 {[%clk 0:02:49]}  Qxd6 {[%clk 0:02:34]} 14. Nf3 {[%clk 0:02:49]}  c6 {[%clk 0:02:31]} 15. Ne5 {[%clk 0:02:48]}  Nd7 {[%clk 0:02:31]} 16. Re3 {[%clk 0:02:47]}  Nxe5 {[%clk 0:02:29]} 17. Rxe5 {[%clk 0:02:47]}  Bd7 {[%clk 0:02:29]} 18. Rae1 {[%clk 0:02:48]}  Rf7 {[%clk 0:02:28]} 19. f3 {[%clk 0:02:48]}  Raf8 {[%clk 0:02:25]} 20. Qa4 {[%clk 0:02:46]}  a6 {[%clk 0:02:25]} 21. Qb4 {[%clk 0:02:43]}  Qxb4 {[%clk 0:02:23]} 22. cxb4 {[%clk 0:02:44]}  Rf4 {[%clk 0:02:23]} 23. Re7 {[%clk 0:02:41]}  R8f7 {[%clk 0:02:22]} 24. Rxf7 {[%clk 0:02:37]}  Kxf7 {[%clk 0:02:23]} 25. Rd1 {[%clk 0:02:38]}  Ke7 {[%clk 0:02:18]} 26. Be2 {[%clk 0:02:34]}  Kd6 {[%clk 0:02:17]} 27. Kf2 {[%clk 0:02:34]}  Rf7 {[%clk 0:02:17]} 28. h4 {[%clk 0:02:33]}  Bf5 {[%clk 0:02:15]} 29. a3 {[%clk 0:02:32]}  Re7 {[%clk 0:02:09]} 30. g4 {[%clk 0:02:30]}  Bd7 {[%clk 0:01:49]} 31. Bd3 {[%clk 0:02:30]}  Rf7 {[%clk 0:01:48]} 32. Kg3 {[%clk 0:02:26]}  h5 {[%clk 0:01:44]} 33. Bxg6 {[%clk 0:02:25]}  Rxf3+ {[%clk 0:01:44]} 34. Kxf3 {[%clk 0:02:23]}  Bxg4+ {[%clk 0:01:45]} 35. Kf4 {[%clk 0:02:23]}  Bxd1 {[%clk 0:01:46]} 36. Bd3 {[%clk 0:02:09]}  Ke6 {[%clk 0:01:41]} 37. Kg5 {[%clk 0:02:07]}  Bg4 {[%clk 0:01:38]} 38. a4 {[%clk 0:02:04]}  b5 {[%clk 0:01:36]} 39. a5 {[%clk 0:02:04]}  Kf7 {[%clk 0:01:24]} 40. Bg6+ {[%clk 0:02:03]}  Ke6 {[%clk 0:01:24]} 41. Be8 {[%clk 0:02:02]}  Kd6 {[%clk 0:01:12]} 42. Bxh5 {[%clk 0:01:59]}  Bd7 {[%clk 0:01:07]} 43. Bg6 {[%clk 0:00:54]}  Ke7 {[%clk 0:01:05]} 44. Bd3 {[%clk 0:00:53]}  Be6 {[%clk 0:01:04]} 45. Kg6 {[%clk 0:00:50]}  Kf8 {[%clk 0:01:04]} 46. Kg5 {[%clk 0:00:34]}  Ke7 {[%clk 0:01:01]} 47. Bc2 {[%clk 0:00:35]}  Bf7 {[%clk 0:00:58]} 48. Bf5 {[%clk 0:00:34]}  Be8 {[%clk 0:00:58]} 49. Bc8 {[%clk 0:00:32]}  Kd6 {[%clk 0:00:58]} 50. Bxa6 {[%clk 0:00:24]}  Kc7 {[%clk 0:00:58]} 51. Kf5 {[%clk 0:00:23]}  Bf7 {[%clk 0:00:57]} 52. Ke5 {[%clk 0:00:20]}  Be8 {[%clk 0:00:55]} 53. Ke6 {[%clk 0:00:19]}  Bh5 {[%clk 0:00:52]} 54. Ke7 {[%clk 0:00:18]}  Be2 {[%clk 0:00:51]} 55. Kf7 {[%clk 0:00:18]}  Bg4 {[%clk 0:00:48]} 56. Kxg7 {[%clk 0:00:18]}  Kb8 {[%clk 0:00:48]} 57. Kg6 {[%clk 0:00:18]}  Ka7 {[%clk 0:00:48]} 58. Bxb5 {[%clk 0:00:16]}  cxb5 {[%clk 0:00:47]} 59. h5 {[%clk 0:00:17]}  Bf3 {[%clk 0:00:47]} 60. h6 {[%clk 0:00:17]}  Be4+ {[%clk 0:00:48]} 61. Kg7 {[%clk 0:00:17]}  Kb7 {[%clk 0:00:48]} 62. h7 {[%clk 0:00:18]}  Bxh7 {[%clk 0:00:48]} 63. Kxh7 {[%clk 0:00:19]}  Kc6 {[%clk 0:00:49]} 64. Kg6 {[%clk 0:00:20]}  Kd6 {[%clk 0:00:48]} 65. Kf6 {[%clk 0:00:20]} 1-0


[Site "https://www.chess.com"]

[Event "Titled Tuesday Blitz June 27 Early 2023"]
[White "Halkias, Stelios"]
[Black "Narayanan.S.L"]
[WhiteFideId "4201809"]
[BlackFideId "5058422"]
[WhiteElo "2767"]
[BlackElo "2992"]
[Result "0-1"]
[Round "3"]
[TimeControl "180+2"]
[Date "2023.06.27"]
[WhiteClock "0:00:04"]
[BlackClock "0:00:57"]
[Board "12"]

1. Nf3 {[%clk 0:03:00]}  Nf6 {[%clk 0:02:48]} 2. c4 {[%clk 0:03:00]}  b6 {[%clk 0:02:48]} 3. g3 {[%clk 0:03:00]}  Bb7 {[%clk 0:02:48]} 4. Bg2 {[%clk 0:03:00]}  g6 {[%clk 0:02:48]} 5. d4 {[%clk 0:02:59]}  Bg7 {[%clk 0:02:47]} 6. O-O {[%clk 0:02:59]}  O-O {[%clk 0:02:48]} 7. d5 {[%clk 0:02:59]}  e6 {[%clk 0:02:45]} 8. Nc3 {[%clk 0:02:59]}  Na6 {[%clk 0:02:45]} 9. e4 {[%clk 0:02:54]}  d6 {[%clk 0:02:45]} 10. Re1 {[%clk 0:02:54]}  e5 {[%clk 0:02:44]} 11. Qc2 {[%clk 0:02:42]}  Nb4 {[%clk 0:02:42]} 12. Qe2 {[%clk 0:02:35]}  a5 {[%clk 0:02:41]} 13. b3 {[%clk 0:02:33]}  Na6 {[%clk 0:02:40]} 14. Be3 {[%clk 0:02:32]}  Nc5 {[%clk 0:02:39]} 15. Nd2 {[%clk 0:02:32]}  Bc8 {[%clk 0:02:35]} 16. h3 {[%clk 0:02:29]}  Bd7 {[%clk 0:02:34]} 17. a3 {[%clk 0:02:25]}  Qe7 {[%clk 0:02:07]} 18. b4 {[%clk 0:02:19]}  Nb7 {[%clk 0:02:07]} 19. Nb5 {[%clk 0:02:16]}  Rfc8 {[%clk 0:02:06]} 20. Rec1 {[%clk 0:02:10]}  Ne8 {[%clk 0:02:05]} 21. g4 {[%clk 0:01:57]}  Bf6 {[%clk 0:02:02]} 22. Nf3 {[%clk 0:01:46]}  Kh8 {[%clk 0:02:02]} 23. Kh1 {[%clk 0:01:46]}  Bg7 {[%clk 0:01:56]} 24. Nc3 {[%clk 0:01:40]}  f6 {[%clk 0:01:50]} 25. Nd2 {[%clk 0:01:38]}  Qf8 {[%clk 0:01:44]} 26. Rg1 {[%clk 0:01:34]}  Bh6 {[%clk 0:01:44]} 27. Rab1 {[%clk 0:01:31]}  Bxe3 {[%clk 0:01:44]} 28. Qxe3 {[%clk 0:01:31]}  Kg7 {[%clk 0:01:39]} 29. Bf1 {[%clk 0:01:28]}  Kf7 {[%clk 0:01:32]} 30. Bd3 {[%clk 0:01:27]}  Qe7 {[%clk 0:01:31]} 31. Rgf1 {[%clk 0:01:22]}  g5 {[%clk 0:01:23]} 32. Ne2 {[%clk 0:01:17]}  Ng7 {[%clk 0:01:22]} 33. Ng3 {[%clk 0:01:17]}  h5 {[%clk 0:01:23]} 34. Nf5 {[%clk 0:01:15]}  Bxf5 {[%clk 0:01:22]} 35. exf5 {[%clk 0:01:15]}  Rh8 {[%clk 0:01:21]} 36. Kg2 {[%clk 0:01:15]}  hxg4 {[%clk 0:01:18]} 37. hxg4 {[%clk 0:01:15]}  Rh4 {[%clk 0:01:19]} 38. f3 {[%clk 0:01:15]}  Rah8 {[%clk 0:01:11]} 39. Rh1 {[%clk 0:01:15]}  Qe8 {[%clk 0:01:12]} 40. Rxh4 {[%clk 0:01:08]}  Rxh4 {[%clk 0:01:11]} 41. Rh1 {[%clk 0:00:18]}  Rxh1 {[%clk 0:01:10]} 42. Kxh1 {[%clk 0:00:18]}  Qa4 {[%clk 0:01:11]} 43. Ne4 {[%clk 0:00:15]}  Qxa3 {[%clk 0:01:08]} 44. Nxg5+ {[%clk 0:00:15]}  fxg5 {[%clk 0:01:08]} 45. Qxg5 {[%clk 0:00:16]}  Qxd3 {[%clk 0:01:07]} 46. Qg6+ {[%clk 0:00:15]}  Kf8 {[%clk 0:01:07]} 47. Qf6+ {[%clk 0:00:14]}  Kg8 {[%clk 0:01:08]} 48. Kg2 {[%clk 0:00:12]}  axb4 {[%clk 0:01:08]} 49. Qg5 {[%clk 0:00:10]}  b3 {[%clk 0:00:56]} 50. f6 {[%clk 0:00:04]}  Qh7 {[%clk 0:00:57]} 0-1


[Site "https://www.chess.com"]

[Event "Titled Tuesday Blitz June 27 Early 2023"]
[White "Hakobyan, Aram"]
[Black "Hayrapetyan, Hovik"]
[WhiteFideId "13306677"]
[BlackFideId "13302639"]
[WhiteElo "2990"]
[BlackElo "2764"]
[Result "1-0"]
[Round "3"]
[TimeControl "180+2"]
[Date "2023.06.27"]
[WhiteClock "0:00:18"]
[BlackClock "0:00:00"]
[Board "13"]

1. d4 {[%clk 0:03:00]}  Nf6 {[%clk 0:03:00]} 2. c4 {[%clk 0:03:01]}  e6 {[%clk 0:03:00]} 3. Nc3 {[%clk 0:03:02]}  Bb4 {[%clk 0:03:00]} 4. e3 {[%clk 0:03:03]}  O-O {[%clk 0:03:00]} 5. a3 {[%clk 0:03:03]}  Bxc3+ {[%clk 0:03:00]} 6. bxc3 {[%clk 0:03:04]}  c5 {[%clk 0:02:53]} 7. Ne2 {[%clk 0:03:03]}  b6 {[%clk 0:02:50]} 8. Ng3 {[%clk 0:03:03]}  Bb7 {[%clk 0:02:50]} 9. Bd3 {[%clk 0:03:04]}  Nc6 {[%clk 0:02:47]} 10. O-O {[%clk 0:02:53]}  d6 {[%clk 0:02:45]} 11. Bb2 {[%clk 0:02:25]}  Rc8 {[%clk 0:02:23]} 12. e4 {[%clk 0:02:20]}  cxd4 {[%clk 0:02:22]} 13. cxd4 {[%clk 0:02:20]}  Na5 {[%clk 0:02:23]} 14. Rc1 {[%clk 0:02:15]}  Nd7 {[%clk 0:02:02]} 15. Qe2 {[%clk 0:02:06]}  e5 {[%clk 0:01:59]} 16. Nf5 {[%clk 0:02:03]}  exd4 {[%clk 0:01:28]} 17. Bxd4 {[%clk 0:02:01]}  Ne5 {[%clk 0:01:25]} 18. f4 {[%clk 0:02:02]}  Nxd3 {[%clk 0:01:22]} 19. Qxd3 {[%clk 0:02:03]}  f6 {[%clk 0:01:19]} 20. Rc3 {[%clk 0:01:11]}  Nc6 {[%clk 0:01:10]} 21. Qg3 {[%clk 0:00:54]}  Rc7 {[%clk 0:01:04]} 22. Bf2 {[%clk 0:00:51]}  Bc8 {[%clk 0:00:57]} 23. Qh4 {[%clk 0:00:50]}  Bxf5 {[%clk 0:00:56]} 24. exf5 {[%clk 0:00:51]}  Ne7 {[%clk 0:00:54]} 25. g4 {[%clk 0:00:35]}  h6 {[%clk 0:00:43]} 26. Rd1 {[%clk 0:00:29]}  d5 {[%clk 0:00:31]} 27. Qg3 {[%clk 0:00:29]}  Qc8 {[%clk 0:00:28]} 28. c5 {[%clk 0:00:17]}  bxc5 {[%clk 0:00:00]} 29. Rdc1 {[%clk 0:00:18]} 1-0


[Site "https://www.chess.com"]

[Event "Titled Tuesday Blitz June 27 Early 2023"]
[White "Panesar Vedant"]
[Black "Andreikin, Dmitry"]
[WhiteFideId "35033018"]
[BlackFideId "4158814"]
[WhiteElo "2754"]
[BlackElo "2989"]
[Result "0-1"]
[Round "3"]
[TimeControl "180+2"]
[Date "2023.06.27"]
[WhiteClock "0:00:00"]
[BlackClock "0:00:31"]
[Board "14"]

1. e4 {[%clk 0:03:00]}  c5 {[%clk 0:02:56]} 2. Nf3 {[%clk 0:03:01]}  e6 {[%clk 0:02:56]} 3. d4 {[%clk 0:03:00]}  cxd4 {[%clk 0:02:57]} 4. Nxd4 {[%clk 0:03:00]}  a6 {[%clk 0:02:57]} 5. Bd3 {[%clk 0:03:00]}  Bc5 {[%clk 0:02:56]} 6. Nb3 {[%clk 0:03:00]}  Be7 {[%clk 0:02:56]} 7. Qg4 {[%clk 0:02:59]}  Bf6 {[%clk 0:02:55]} 8. O-O {[%clk 0:02:58]}  Nc6 {[%clk 0:02:54]} 9. Qe2 {[%clk 0:02:57]}  d6 {[%clk 0:02:54]} 10. f4 {[%clk 0:02:56]}  Nge7 {[%clk 0:02:53]} 11. N1d2 {[%clk 0:02:54]}  O-O {[%clk 0:02:49]} 12. a4 {[%clk 0:02:55]}  b6 {[%clk 0:02:25]} 13. Nc4 {[%clk 0:02:50]}  d5 {[%clk 0:02:13]} 14. exd5 {[%clk 0:02:46]}  exd5 {[%clk 0:02:03]} 15. Ne5 {[%clk 0:02:46]}  Qc7 {[%clk 0:02:02]} 16. Re1 {[%clk 0:02:39]}  Ng6 {[%clk 0:02:00]} 17. Ng4 {[%clk 0:02:12]}  Bxg4 {[%clk 0:01:49]} 18. Qxg4 {[%clk 0:02:12]}  Rfe8 {[%clk 0:01:50]} 19. Rf1 {[%clk 0:01:41]}  Nb4 {[%clk 0:01:38]} 20. Bxg6 {[%clk 0:01:40]}  hxg6 {[%clk 0:01:36]} 21. c3 {[%clk 0:01:40]}  Nc2 {[%clk 0:01:24]} 22. Rb1 {[%clk 0:01:18]}  Qc4 {[%clk 0:01:24]} 23. Na1 {[%clk 0:00:49]}  Nxa1 {[%clk 0:01:04]} 24. Rxa1 {[%clk 0:00:48]}  Re2 {[%clk 0:01:05]} 25. b3 {[%clk 0:00:44]}  Qe4 {[%clk 0:01:01]} 26. Ba3 {[%clk 0:00:36]}  Bxc3 {[%clk 0:00:58]} 27. Rad1 {[%clk 0:00:36]}  d4 {[%clk 0:00:56]} 28. Kh1 {[%clk 0:00:30]}  Re8 {[%clk 0:00:55]} 29. h3 {[%clk 0:00:23]}  d3 {[%clk 0:00:54]} 30. Rf3 {[%clk 0:00:16]}  Re1+ {[%clk 0:00:42]} 31. Rf1 {[%clk 0:00:16]}  d2 {[%clk 0:00:40]} 32. Qd7 {[%clk 0:00:09]}  Qe2 {[%clk 0:00:31]} 33. Kh2 {[%clk 0:00:03]}  Qxf1 {[%clk 0:00:30]} 34. Qxe8+ {[%clk 0:00:01]}  Rxe8 {[%clk 0:00:31]} 35. Rxf1 {[%clk 0:00:00]}  Re1 {[%clk 0:00:31]} 0-1


[Site "https://www.chess.com"]

[Event "Titled Tuesday Blitz June 27 Early 2023"]
[White "Lorparizangeneh, Shahin"]
[Black "Van Foreest, Jorden"]
[WhiteFideId "12521604"]
[BlackFideId "1039784"]
[WhiteElo "2743"]
[BlackElo "2976"]
[Result "0-1"]
[Round "3"]
[TimeControl "180+2"]
[Date "2023.06.27"]
[WhiteClock "0:00:12"]
[BlackClock "0:01:07"]
[Board "16"]

1. e4 {[%clk 0:02:20]}  c5 {[%clk 0:02:58]} 2. Nf3 {[%clk 0:02:20]}  Nc6 {[%clk 0:02:58]} 3. Bb5 {[%clk 0:02:21]}  g6 {[%clk 0:02:58]} 4. O-O {[%clk 0:02:21]}  Bg7 {[%clk 0:02:59]} 5. c3 {[%clk 0:02:21]}  a6 {[%clk 0:02:57]} 6. Bxc6 {[%clk 0:02:20]}  dxc6 {[%clk 0:02:58]} 7. d4 {[%clk 0:02:20]}  cxd4 {[%clk 0:02:56]} 8. cxd4 {[%clk 0:02:21]}  Bg4 {[%clk 0:02:57]} 9. Be3 {[%clk 0:02:20]}  Bxf3 {[%clk 0:02:54]} 10. gxf3 {[%clk 0:02:12]}  Nf6 {[%clk 0:02:53]} 11. Nc3 {[%clk 0:02:11]}  O-O {[%clk 0:02:53]} 12. Qb3 {[%clk 0:02:11]}  Qd7 {[%clk 0:02:50]} 13. Kg2 {[%clk 0:02:10]}  Nh5 {[%clk 0:02:44]} 14. Rad1 {[%clk 0:02:07]}  e6 {[%clk 0:02:29]} 15. Na4 {[%clk 0:01:52]}  Qe7 {[%clk 0:02:29]} 16. Nc5 {[%clk 0:01:50]}  Rab8 {[%clk 0:02:29]} 17. Qc4 {[%clk 0:01:28]}  Rfd8 {[%clk 0:02:29]} 18. e5 {[%clk 0:01:12]}  Qh4 {[%clk 0:02:23]} 19. Ne4 {[%clk 0:01:09]}  Nf4+ {[%clk 0:02:23]} 20. Bxf4 {[%clk 0:01:07]}  Qxf4 {[%clk 0:02:23]} 21. Rd3 {[%clk 0:01:05]}  Rd5 {[%clk 0:02:22]} 22. Rfd1 {[%clk 0:01:05]}  Rbd8 {[%clk 0:02:21]} 23. Qb3 {[%clk 0:01:05]}  Rb8 {[%clk 0:02:13]} 24. Rc3 {[%clk 0:01:01]}  h5 {[%clk 0:01:58]} 25. h3 {[%clk 0:00:54]}  Kh7 {[%clk 0:01:55]} 26. a4 {[%clk 0:00:54]}  Rbd8 {[%clk 0:01:45]} 27. Rc4 {[%clk 0:00:37]}  Kh8 {[%clk 0:01:39]} 28. Qxb7 {[%clk 0:00:30]}  Bxe5 {[%clk 0:01:37]} 29. Rxc6 {[%clk 0:00:18]}  Bxd4 {[%clk 0:01:29]} 30. Rc8 {[%clk 0:00:18]}  Rxc8 {[%clk 0:01:21]} 31. Qxc8+ {[%clk 0:00:18]}  Kg7 {[%clk 0:01:22]} 32. Qxa6 {[%clk 0:00:18]}  Bxb2 {[%clk 0:01:21]} 33. Rxd5 {[%clk 0:00:17]}  exd5 {[%clk 0:01:21]} 34. Ng3 {[%clk 0:00:18]}  h4 {[%clk 0:01:21]} 35. Ne2 {[%clk 0:00:18]}  Qg5+ {[%clk 0:01:21]} 36. Kf1 {[%clk 0:00:18]}  Qf5 {[%clk 0:01:21]} 37. Qb5 {[%clk 0:00:18]}  Qxh3+ {[%clk 0:01:17]} 38. Ke1 {[%clk 0:00:18]}  Qh1+ {[%clk 0:01:10]} 39. Kd2 {[%clk 0:00:18]}  Bf6 {[%clk 0:01:10]} 40. Qxd5 {[%clk 0:00:18]}  h3 {[%clk 0:01:10]} 41. Ng3 {[%clk 0:00:19]}  Qg2 {[%clk 0:01:09]} 42. Ke2 {[%clk 0:00:19]}  h2 {[%clk 0:01:09]} 43. Qd1 {[%clk 0:00:20]}  Be5 {[%clk 0:01:07]} 44. Qh1 {[%clk 0:00:19]}  Qg1 {[%clk 0:01:07]} 45. f4 {[%clk 0:00:12]}  Bxf4 {[%clk 0:01:07]} 0-1


[Site "https://www.chess.com"]